[Event "Sverigemastarklassen 2025"]
[Site "Uppsala, Sweden"]
[Date "2025.07.04"]
[Round "7.2"]
[White "Storme, Isak"]
[Black "Hector, Jonny"]
[Result "1/2-1/2"]
[TimeControl "90 min for 40 move + 30 min with an increment of 30 sec starting move 1"]
[WhiteTitle "IM"]
[BlackTitle "GM"]
[WhiteFideId "1728113"]
[BlackFideId "1700090"]
[WhiteElo "2466"]
[BlackElo "2430"]

1. e4 {[%clk 01:30:56]} {[%emt 00:00:03]} e5 {[%clk 01:30:52]} {[%emt
00:00:06]} 2. Nf3 {[%clk 01:30:54]} {[%emt 00:00:30]} Nc6 {[%clk 01:31:17]}
{[%emt 00:00:09]} 3. Bc4 {[%clk 01:31:16]} {[%emt 00:00:07]} Nf6 {[%clk
01:31:35]} {[%emt 00:00:11]} 4. d3 {[%clk 01:31:32]} {[%emt 00:00:15]} d5
{[%clk 01:31:05]} {[%emt 00:01:01]} 5. exd5 {[%clk 01:31:56]} {[%emt 00:00:07]}
Nxd5 {[%clk 01:31:26]} {[%emt 00:00:08]} 6. O-O {[%clk 01:32:05]} {[%emt
00:00:21]} Nb6 {[%clk 01:30:52]} {[%emt 00:01:03]} 7. Bb5 {[%clk 01:32:02]}
{[%emt 00:00:34]} Bd6 {[%clk 01:31:02]} {[%emt 00:00:19]} 8. Bxc6+ {[%clk
01:32:20]} {[%emt 00:00:14]} bxc6 {[%clk 01:31:22]} {[%emt 00:00:09]} 9. Nxe5
{[%clk 01:32:38]} {[%emt 00:00:12]} Bxe5 {[%clk 01:31:20]} {[%emt 00:00:32]} 10.
Re1 {[%clk 01:32:58]} {[%emt 00:00:09]} Qe7 {[%clk 01:31:13]} {[%emt 00:00:37]}
11. f4 {[%clk 01:32:53]} {[%emt 00:00:36]} Bd4+ {[%clk 01:29:18]} {[%emt
00:02:25]} 12. Kh1 {[%clk 01:33:14]} {[%emt 00:00:09]} Be6 {[%clk 01:29:39]}
{[%emt 00:00:08]} 13. f5 {[%clk 01:33:25]} {[%emt 00:00:19]} O-O {[%clk
01:27:54]} {[%emt 00:02:15]} 14. Nd2 {[%clk 01:32:57]} {[%emt 00:00:59]} Nd5
{[%clk 01:07:05]} {[%emt 00:21:18]} 15. Nf3 {[%clk 01:31:45]} {[%emt 00:01:42]}
c5 {[%clk 01:02:07]} {[%emt 00:05:29]} 16. c3 {[%clk 01:16:44]} {[%emt
00:15:31]} Bf2 {[%clk 00:49:58]} {[%emt 00:12:38]} 17. Re2 {[%clk 01:10:31]}
{[%emt 00:06:44]} Be3 {[%clk 00:48:55]} {[%emt 00:01:33]} 18. c4 {[%clk
00:53:16]} {[%emt 00:17:45]} Bxc1 {[%clk 00:49:02]} {[%emt 00:00:22]} 19. cxd5
{[%clk 00:53:29]} {[%emt 00:00:19]} Bxb2 {[%clk 00:49:07]} {[%emt 00:00:24]} 20.
Rb1 {[%clk 00:53:28]} {[%emt 00:00:31]} Bf6 {[%clk 00:48:49]} {[%emt 00:00:48]}
21. dxe6 {[%clk 00:53:12]} {[%emt 00:00:46]} Rab8 {[%clk 00:42:23]} {[%emt
00:06:56]} 22. Rxb8 {[%clk 00:44:23]} {[%emt 00:09:19]} Rxb8 {[%clk 00:41:48]}
{[%emt 00:01:04]} 23. g3 {[%clk 00:39:12]} {[%emt 00:05:42]} fxe6 {[%clk
00:34:11]} {[%emt 00:08:06]} 24. fxe6 {[%clk 00:29:00]} {[%emt 00:10:43]} Qd6
{[%clk 00:27:42]} {[%emt 00:06:59]} 25. Qc2 {[%clk 00:20:08]} {[%emt 00:09:21]}
Kf8 {[%clk 00:23:45]} {[%emt 00:04:27]} 26. d4 {[%clk 00:10:52]} {[%emt
00:09:47]} cxd4 {[%clk 00:17:18]} {[%emt 00:06:55]} 27. Qxh7 {[%clk 00:11:00]}
{[%emt 00:00:24]} Ke7 {[%clk 00:15:43]} {[%emt 00:02:04]} 28. Qh5 {[%clk
00:09:24]} {[%emt 00:02:06]} Rf8 {[%clk 00:09:39]} {[%emt 00:06:34]} 29. Nh4
{[%clk 00:08:05]} {[%emt 00:01:49]} Qc6+ {[%clk 00:06:38]} {[%emt 00:03:32]} 30.
Kg1 {[%clk 00:08:22]} {[%emt 00:00:13]} Kd8 {[%clk 00:06:36]} {[%emt 00:00:31]}
31. Nf5 {[%clk 00:06:46]} {[%emt 00:02:06]} Be7 {[%clk 00:05:05]} {[%emt
00:02:01]} 32. Qg4 {[%clk 00:05:40]} {[%emt 00:01:36]} Qc1+ {[%clk 00:01:50]}
{[%emt 00:03:45]} 33. Kg2 {[%clk 00:06:03]} {[%emt 00:00:08]} Qc6+ {[%clk
00:02:16]} {[%emt 00:00:04]} 34. Kg1 {[%clk 00:04:37]} {[%emt 00:01:56]} Qc1+
{[%clk 00:02:22]} {[%emt 00:00:24]} 35. Kg2 {[%clk 00:04:37]} {[%emt 00:00:29]}
Qc6+ {[%clk 00:01:55]} {[%emt 00:00:58]} 36. Kg1 {[%clk 00:04:27]} {[%emt
00:00:40]} Qc1+ {[%clk 00:01:46]} {[%emt 00:00:39]} 37. Kg2 {[%clk 00:04:49]}
{[%emt 00:00:07]} 1/2-1/2

[Event "Sverigemastarklassen 2025"]
[Site "Uppsala, Sweden"]
[Date "2025.07.04"]
[Round "7.3"]
[White "Lokander, Martin"]
[Black "Falkevall, Axel"]
[Result "0-1"]
[TimeControl "90 min for 40 move + 30 min with an increment of 30 sec starting move 1"]
[WhiteTitle "IM"]
[BlackTitle "FM"]
[WhiteFideId "1709569"]
[BlackFideId "1735560"]
[WhiteElo "2446"]
[BlackElo "2372"]

1. Nf3 {[%clk 01:30:54]} {[%emt 00:00:06]} Nf6 {[%clk 01:30:50]} {[%emt
00:00:10]} 2. c4 {[%clk 01:31:20]} {[%emt 00:00:05]} c5 {[%clk 01:31:13]}
{[%emt 00:00:06]} 3. Nc3 {[%clk 01:31:45]} {[%emt 00:00:06]} Nc6 {[%clk
01:31:34]} {[%emt 00:00:09]} 4. d4 {[%clk 01:30:36]} {[%emt 00:01:39]} cxd4
{[%clk 01:31:51]} {[%emt 00:00:13]} 5. Nxd4 {[%clk 01:31:02]} {[%emt 00:00:04]}
e6 {[%clk 01:32:03]} {[%emt 00:00:18]} 6. g3 {[%clk 01:31:05]} {[%emt
00:00:27]} Qb6 {[%clk 01:32:04]} {[%emt 00:00:28]} 7. Nb3 {[%clk 01:31:19]}
{[%emt 00:00:16]} Ne5 {[%clk 01:31:17]} {[%emt 00:01:17]} 8. e4 {[%clk
01:31:41]} {[%emt 00:00:09]} Bb4 {[%clk 01:24:57]} {[%emt 00:06:49]} 9. c5
{[%clk 01:31:49]} {[%emt 00:00:22]} Qc6 {[%clk 01:15:40]} {[%emt 00:09:47]} 10.
Bg2 {[%clk 01:32:07]} {[%emt 00:00:12]} Qb5 {[%clk 01:14:24]} {[%emt 00:01:46]}
11. Bf1 {[%clk 01:31:14]} {[%emt 00:01:24]} Qc6 {[%clk 01:14:34]} {[%emt
00:00:20]} 12. f3 {[%clk 01:31:32]} {[%emt 00:00:12]} b6 {[%clk 00:57:17]}
{[%emt 00:17:46]} 13. Bf4 {[%clk 01:31:26]} {[%emt 00:00:36]} Ng6 {[%clk
00:55:53]} {[%emt 00:01:54]} 14. Bd6 {[%clk 01:31:46]} {[%emt 00:00:10]} bxc5
{[%clk 00:53:19]} {[%emt 00:03:05]} 15. a3 {[%clk 01:32:09]} {[%emt 00:00:07]}
Bxc3+ {[%clk 00:48:39]} {[%emt 00:05:09]} 16. bxc3 {[%clk 01:32:35]} {[%emt
00:00:05]} Nxe4 {[%clk 00:42:36]} {[%emt 00:06:33]} 17. fxe4 {[%clk 01:32:50]}
{[%emt 00:00:15]} Qxe4+ {[%clk 00:43:01]} {[%emt 00:00:04]} 18. Kf2 {[%clk
01:27:12]} {[%emt 00:06:08]} Ne5 {[%clk 00:36:39]} {[%emt 00:06:52]} 19. Be2
{[%clk 01:13:45]} {[%emt 00:13:57]} Bb7 {[%clk 00:33:34]} {[%emt 00:03:36]} 20.
Nxc5 {[%clk 01:08:06]} {[%emt 00:06:09]} Qf5+ {[%clk 00:31:08]} {[%emt
00:02:55]} 21. Ke3 {[%clk 00:52:14]} {[%emt 00:16:22]} Qg5+ {[%clk 00:30:19]}
{[%emt 00:01:18]} 22. Kd4 {[%clk 00:51:36]} {[%emt 00:01:09]} Bxh1 {[%clk
00:26:54]} {[%emt 00:03:55]} 23. Qxh1 {[%clk 00:49:54]} {[%emt 00:02:12]} Qd2+
{[%clk 00:25:39]} {[%emt 00:01:45]} 24. Bd3 {[%clk 00:48:39]} {[%emt 00:01:46]}
Qf2+ {[%clk 00:24:00]} {[%emt 00:02:08]} 25. Ke4 {[%clk 00:48:55]} {[%emt
00:00:15]} Ng4 {[%clk 00:23:33]} {[%emt 00:00:56]} 26. Nxe6 {[%clk 00:46:58]}
{[%emt 00:02:28]} fxe6 {[%clk 00:20:23]} {[%emt 00:03:39]} 27. Re1 {[%clk
00:45:21]} {[%emt 00:02:06]} Rc8 {[%clk 00:18:24]} {[%emt 00:02:30]} 28. c4
{[%clk 00:42:20]} {[%emt 00:03:31]} Qd2 {[%clk 00:16:59]} {[%emt 00:01:56]} 29.
Qf1 {[%clk 00:40:24]} {[%emt 00:02:26]} Nf2+ {[%clk 00:13:46]} {[%emt
00:03:42]} 30. Kd4 {[%clk 00:40:17]} {[%emt 00:00:38]} Qb2+ {[%clk 00:10:11]}
{[%emt 00:04:04]} 31. Ke3 {[%clk 00:40:34]} {[%emt 00:00:14]} Ng4+ {[%clk
00:10:13]} {[%emt 00:00:27]} 32. Ke4 {[%clk 00:40:24]} {[%emt 00:00:40]} e5
{[%clk 00:05:43]} {[%emt 00:05:00]} 33. Qf5 {[%clk 00:28:11]} {[%emt 00:12:43]}
Qb7# {[%clk 00:06:02]} {[%emt 00:00:10]} 0-1

[Event "Sverigemastarklassen 2025"]
[Site "Uppsala, Sweden"]
[Date "2025.07.04"]
[Round "7.4"]
[White "Blomqvist, Erik"]
[Black "Galperin, Platon"]
[Result "1-0"]
[TimeControl "90 min for 40 move + 30 min with an increment of 30 sec starting move 1"]
[WhiteTitle "GM"]
[BlackTitle "GM"]
[WhiteFideId "1709437"]
[BlackFideId "14165414"]
[WhiteElo "2448"]
[BlackElo "2500"]

1. e4 {[%clk 01:30:51]} {[%emt 00:00:08]} g6 {[%clk 01:30:57]} {[%emt
00:00:04]} 2. d4 {[%clk 01:31:03]} {[%emt 00:00:17]} d6 {[%clk 01:31:24]}
{[%emt 00:00:04]} 3. Nf3 {[%clk 01:30:56]} {[%emt 00:00:36]} Nf6 {[%clk
01:31:48]} {[%emt 00:00:06]} 4. Nc3 {[%clk 01:31:19]} {[%emt 00:00:07]} Bg7
{[%clk 01:32:13]} {[%emt 00:00:05]} 5. Be3 {[%clk 01:30:44]} {[%emt 00:01:04]}
a6 {[%clk 01:32:37]} {[%emt 00:00:08]} 6. Qd2 {[%clk 01:31:06]} {[%emt
00:00:07]} O-O {[%clk 01:33:03]} {[%emt 00:00:05]} 7. Bh6 {[%clk 01:30:41]}
{[%emt 00:00:55]} Nc6 {[%clk 01:33:28]} {[%emt 00:00:05]} 8. d5 {[%clk
01:25:46]} {[%emt 00:05:23]} Ne5 {[%clk 01:33:50]} {[%emt 00:00:10]} 9. Be2
{[%clk 01:18:43]} {[%emt 00:07:31]} b5 {[%clk 01:31:50]} {[%emt 00:02:31]} 10.
a3 {[%clk 01:17:21]} {[%emt 00:01:53]} e6 {[%clk 01:31:53]} {[%emt 00:00:27]}
11. dxe6 {[%clk 01:10:40]} {[%emt 00:07:10]} Bxe6 {[%clk 01:32:05]} {[%emt
00:00:19]} 12. Bxg7 {[%clk 01:05:56]} {[%emt 00:05:13]} Kxg7 {[%clk 01:31:07]}
{[%emt 00:01:28]} 13. Rd1 {[%clk 01:05:27]} {[%emt 00:00:59]} Qe7 {[%clk
01:27:11]} {[%emt 00:04:24]} 14. O-O {[%clk 01:02:54]} {[%emt 00:03:05]} Nxf3+
{[%clk 01:24:17]} {[%emt 00:03:25]} 15. Bxf3 {[%clk 01:03:07]} {[%emt
00:00:16]} Rad8 {[%clk 01:19:21]} {[%emt 00:05:26]} 16. Rfe1 {[%clk 01:02:41]}
{[%emt 00:00:57]} Nd7 {[%clk 01:18:25]} {[%emt 00:01:25]} 17. Be2 {[%clk
00:59:38]} {[%emt 00:03:34]} g5 {[%clk 01:12:47]} {[%emt 00:06:07]} 18. a4
{[%clk 00:54:24]} {[%emt 00:05:45]} b4 {[%clk 01:13:08]} {[%emt 00:00:08]} 19.
Qd4+ {[%clk 00:52:10]} {[%emt 00:02:44]} Ne5 {[%clk 01:08:20]} {[%emt
00:05:19]} 20. Qxb4 {[%clk 00:52:10]} {[%emt 00:00:29]} c5 {[%clk 01:08:16]}
{[%emt 00:00:34]} 21. Qa3 {[%clk 00:51:01]} {[%emt 00:01:39]} Qb7 {[%clk
01:08:09]} {[%emt 00:00:37]} 22. a5 {[%clk 00:41:34]} {[%emt 00:09:56]} f5
{[%clk 01:08:16]} {[%emt 00:00:24]} 23. exf5 {[%clk 00:40:20]} {[%emt
00:01:44]} Rxf5 {[%clk 01:05:24]} {[%emt 00:03:22]} 24. Bd3 {[%clk 00:36:00]}
{[%emt 00:04:50]} Rf4 {[%clk 01:01:35]} {[%emt 00:04:19]} 25. Rxe5 {[%clk
00:34:20]} {[%emt 00:02:11]} dxe5 {[%clk 01:01:56]} {[%emt 00:00:08]} 26. Qxc5
{[%clk 00:34:41]} {[%emt 00:00:09]} Qf7 {[%clk 00:56:30]} {[%emt 00:05:56]} 27.
Re1 {[%clk 00:33:44]} {[%emt 00:01:26]} Bf5 {[%clk 00:54:21]} {[%emt 00:02:39]}
28. Rxe5 {[%clk 00:30:15]} {[%emt 00:03:59]} Rc8 {[%clk 00:54:06]} {[%emt
00:00:46]} 29. Qe3 {[%clk 00:29:07]} {[%emt 00:01:38]} 1-0

[Event "Sverigemastarklassen 2025"]
[Site "Uppsala, Sweden"]
[Date "2025.07.04"]
[Round "7.5"]
[White "Sorensen, Hampus"]
[Black "Seo, Jung Min"]
[Result "1/2-1/2"]
[TimeControl "90 min for 40 move + 30 min with an increment of 30 sec starting move 1"]
[WhiteTitle "IM"]
[BlackTitle "IM"]
[WhiteFideId "8703884"]
[BlackFideId "1734687"]
[WhiteElo "2432"]
[BlackElo "2472"]

1. d4 {[%clk 01:30:51]} {[%emt 00:00:08]} Nf6 {[%clk 01:30:51]} {[%emt
00:00:10]} 2. c4 {[%clk 01:31:01]} {[%emt 00:00:19]} e6 {[%clk 01:31:20]}
{[%emt 00:00:03]} 3. Nc3 {[%clk 01:30:52]} {[%emt 00:00:38]} Bb4 {[%clk
01:31:44]} {[%emt 00:00:07]} 4. Qc2 {[%clk 01:30:53]} {[%emt 00:00:28]} c5
{[%clk 01:27:07]} {[%emt 00:05:07]} 5. dxc5 {[%clk 01:30:51]} {[%emt 00:00:33]}
O-O {[%clk 01:27:13]} {[%emt 00:00:23]} 6. Nf3 {[%clk 01:29:38]} {[%emt
00:01:43]} Na6 {[%clk 01:27:03]} {[%emt 00:00:40]} 7. g3 {[%clk 01:29:45]}
{[%emt 00:00:23]} Nxc5 {[%clk 01:27:21]} {[%emt 00:00:13]} 8. Bg2 {[%clk
01:29:53]} {[%emt 00:00:21]} Nce4 {[%clk 01:23:40]} {[%emt 00:04:11]} 9. O-O
{[%clk 01:29:55]} {[%emt 00:00:28]} Bxc3 {[%clk 01:22:22]} {[%emt 00:01:47]} 10.
bxc3 {[%clk 01:30:23]} {[%emt 00:00:03]} Qc7 {[%clk 01:22:00]} {[%emt
00:00:52]} 11. Nd4 {[%clk 01:21:53]} {[%emt 00:09:00]} d5 {[%clk 01:21:28]}
{[%emt 00:01:03]} 12. cxd5 {[%clk 01:18:25]} {[%emt 00:03:57]} exd5 {[%clk
01:21:39]} {[%emt 00:00:19]} 13. Bf4 {[%clk 01:01:51]} {[%emt 00:17:03]} Qc5
{[%clk 01:11:35]} {[%emt 00:10:34]} 14. Rac1 {[%clk 00:57:09]} {[%emt
00:05:13]} Bd7 {[%clk 01:03:31]} {[%emt 00:08:34]} 15. Nb3 {[%clk 00:50:29]}
{[%emt 00:07:10]} Qe7 {[%clk 00:59:38]} {[%emt 00:04:22]} 16. Nd2 {[%clk
00:41:19]} {[%emt 00:09:40]} Bf5 {[%clk 00:40:13]} {[%emt 00:19:55]} 17. Qb2
{[%clk 00:39:52]} {[%emt 00:01:59]} Nxd2 {[%clk 00:30:52]} {[%emt 00:09:51]} 18.
Qxd2 {[%clk 00:40:00]} {[%emt 00:00:22]} Be4 {[%clk 00:30:38]} {[%emt
00:00:43]} 19. Bg5 {[%clk 00:38:05]} {[%emt 00:02:25]} Bxg2 {[%clk 00:31:04]}
{[%emt 00:00:04]} 20. Bxf6 {[%clk 00:38:30]} {[%emt 00:00:05]} Qxf6 {[%clk
00:31:29]} {[%emt 00:00:05]} 21. Kxg2 {[%clk 00:38:53]} {[%emt 00:00:07]} Rfd8
{[%clk 00:27:03]} {[%emt 00:04:56]} 22. Rfd1 {[%clk 00:36:23]} {[%emt
00:03:00]} b6 {[%clk 00:26:24]} {[%emt 00:01:09]} 23. Qd4 {[%clk 00:35:55]}
{[%emt 00:00:58]} Qe7 {[%clk 00:26:48]} {[%emt 00:00:06]} 24. Rd2 {[%clk
00:34:32]} {[%emt 00:01:53]} Rac8 {[%clk 00:26:58]} {[%emt 00:00:20]} 25. Rcd1
{[%clk 00:34:50]} {[%emt 00:00:11]} Re8 {[%clk 00:23:52]} {[%emt 00:03:38]} 26.
Qxd5 {[%clk 00:33:04]} {[%emt 00:02:15]} Rxc3 {[%clk 00:24:14]} {[%emt
00:00:08]} 27. e3 {[%clk 00:33:24]} {[%emt 00:00:10]} g6 {[%clk 00:24:18]}
{[%emt 00:00:26]} 28. Kg1 {[%clk 00:29:52]} {[%emt 00:04:02]} Rec8 {[%clk
00:22:46]} {[%emt 00:02:02]} 29. Qd6 {[%clk 00:29:05]} {[%emt 00:01:17]} Qxd6
{[%clk 00:22:52]} {[%emt 00:00:24]} 30. Rxd6 {[%clk 00:29:31]} {[%emt
00:00:04]} Rc1 {[%clk 00:22:58]} {[%emt 00:00:23]} 31. Rxc1 {[%clk 00:27:13]}
{[%emt 00:02:49]} Rxc1+ {[%clk 00:23:24]} {[%emt 00:00:05]} 32. Kg2 {[%clk
00:27:41]} {[%emt 00:00:01]} Rc2 {[%clk 00:23:43]} {[%emt 00:00:10]} 33. a4
{[%clk 00:28:06]} {[%emt 00:00:05]} Rc4 {[%clk 00:23:32]} {[%emt 00:00:42]} 34.
a5 {[%clk 00:28:34]} {[%emt 00:00:03]} bxa5 {[%clk 00:23:47]} {[%emt 00:00:14]}
35. Ra6 {[%clk 00:29:01]} {[%emt 00:00:03]} a4 {[%clk 00:22:02]} {[%emt
00:02:15]} 36. Rxa7 {[%clk 00:29:12]} {[%emt 00:00:19]} h5 {[%clk 00:22:27]}
{[%emt 00:00:05]} 37. h4 {[%clk 00:29:06]} {[%emt 00:00:35]} Kg7 {[%clk
00:22:51]} {[%emt 00:00:06]} 38. Ra6 {[%clk 00:29:31]} {[%emt 00:00:05]} Kf8
{[%clk 00:23:13]} {[%emt 00:00:09]} 39. Ra7 {[%clk 00:29:58]} {[%emt 00:00:03]}
Kg7 {[%clk 00:23:36]} {[%emt 00:00:06]} 40. Ra6 {[%clk 00:30:24]} {[%emt
00:00:04]} Kf8 {[%clk 00:24:03]} {[%emt 00:00:04]} 41. Ra7 {[%clk 00:30:51]}
{[%emt 00:00:04]} 1/2-1/2

[Event "Sverigemastarklassen 2025"]
[Site "Uppsala, Sweden"]
[Date "2025.07.03"]
[Round "6.1"]
[White "Hector, Jonny"]
[Black "Pantzar, Milton"]
[Result "0-1"]
[TimeControl "90 min for 40 move + 30 min with an increment of 30 sec starting move 1"]
[WhiteTitle "GM"]
[BlackTitle "IM"]
[WhiteFideId "1700090"]
[BlackFideId "1721003"]
[WhiteElo "2430"]
[BlackElo "2450"]

1. e4 {[%clk 01:30:54]} {[%emt 00:00:05]} e5 {[%clk 01:30:51]} {[%emt
00:00:10]} 2. Nf3 {[%clk 01:31:17]} {[%emt 00:00:06]} Nc6 {[%clk 01:31:13]}
{[%emt 00:00:09]} 3. c3 {[%clk 01:31:39]} {[%emt 00:00:07]} d5 {[%clk
01:19:26]} {[%emt 00:12:18]} 4. Qa4 {[%clk 01:31:26]} {[%emt 00:00:42]} Bd7
{[%clk 01:09:49]} {[%emt 00:10:09]} 5. exd5 {[%clk 01:31:43]} {[%emt 00:00:13]}
Nd4 {[%clk 01:08:48]} {[%emt 00:01:31]} 6. Qd1 {[%clk 01:32:02]} {[%emt
00:00:10]} Nxf3+ {[%clk 01:08:52]} {[%emt 00:00:27]} 7. Qxf3 {[%clk 01:32:22]}
{[%emt 00:00:09]} Nf6 {[%clk 01:08:45]} {[%emt 00:00:38]} 8. c4 {[%clk
01:32:40]} {[%emt 00:00:12]} Bc5 {[%clk 01:03:53]} {[%emt 00:05:22]} 9. Nc3
{[%clk 01:29:12]} {[%emt 00:03:57]} O-O {[%clk 00:45:15]} {[%emt 00:19:09]} 10.
d3 {[%clk 01:26:45]} {[%emt 00:02:56]} Ng4 {[%clk 00:33:44]} {[%emt 00:12:01]}
11. Ne4 {[%clk 01:19:27]} {[%emt 00:07:47]} Bb4+ {[%clk 00:32:49]} {[%emt
00:01:26]} 12. Bd2 {[%clk 01:19:14]} {[%emt 00:00:43]} Bxd2+ {[%clk 00:31:55]}
{[%emt 00:01:25]} 13. Nxd2 {[%clk 01:17:39]} {[%emt 00:02:04]} c6 {[%clk
00:30:00]} {[%emt 00:02:26]} 14. dxc6 {[%clk 01:00:32]} {[%emt 00:17:36]} bxc6
{[%clk 00:29:02]} {[%emt 00:01:29]} 15. h3 {[%clk 00:59:49]} {[%emt 00:01:12]}
Nh6 {[%clk 00:23:03]} {[%emt 00:06:30]} 16. Qd1 {[%clk 00:59:14]} {[%emt
00:01:04]} Bf5 {[%clk 00:17:17]} {[%emt 00:06:17]} 17. Nf3 {[%clk 00:56:13]}
{[%emt 00:03:30]} Qe7 {[%clk 00:09:19]} {[%emt 00:08:29]} 18. Be2 {[%clk
00:51:42]} {[%emt 00:04:59]} Rad8 {[%clk 00:09:12]} {[%emt 00:00:38]} 19. Qb3
{[%clk 00:48:02]} {[%emt 00:04:10]} e4 {[%clk 00:04:53]} {[%emt 00:04:50]} 20.
dxe4 {[%clk 00:47:08]} {[%emt 00:01:23]} Qxe4 {[%clk 00:05:19]} {[%emt
00:00:05]} 21. Kf1 {[%clk 00:42:24]} {[%emt 00:05:13]} Qe6 {[%clk 00:01:35]}
{[%emt 00:04:13]} 22. Qc3 {[%clk 00:38:24]} {[%emt 00:04:31]} c5 {[%clk
00:01:29]} {[%emt 00:00:37]} 23. Re1 {[%clk 00:34:32]} {[%emt 00:04:20]} f6
{[%clk 00:01:37]} {[%emt 00:00:24]} 24. Nh4 {[%clk 00:31:50]} {[%emt 00:03:10]}
Be4 {[%clk 00:01:17]} {[%emt 00:00:51]} 25. Kg1 {[%clk 00:27:21]} {[%emt
00:04:59]} Qd6 {[%clk 00:00:42]} {[%emt 00:01:06]} 26. Bf3 {[%clk 00:25:37]}
{[%emt 00:02:13]} Bxf3 {[%clk 00:00:43]} {[%emt 00:00:29]} 27. Nxf3 {[%clk
00:25:22]} {[%emt 00:00:44]} Nf5 {[%clk 00:00:58]} {[%emt 00:00:17]} 28. g3
{[%clk 00:21:22]} {[%emt 00:04:29]} h5 {[%clk 00:00:54]} {[%emt 00:00:34]} 29.
h4 {[%clk 00:19:18]} {[%emt 00:02:34]} Qc6 {[%clk 00:01:06]} {[%emt 00:00:18]}
30. Kh2 {[%clk 00:18:34]} {[%emt 00:01:13]} Nh6 {[%clk 00:01:08]} {[%emt
00:00:29]} 31. Rhf1 {[%clk 00:17:39]} {[%emt 00:01:24]} Rd7 {[%clk 00:00:49]}
{[%emt 00:00:50]} 32. Rd1 {[%clk 00:16:29]} {[%emt 00:01:39]} Rfd8 {[%clk
00:00:45]} {[%emt 00:00:35]} 33. Rxd7 {[%clk 00:15:40]} {[%emt 00:01:18]} Qxd7
{[%clk 00:01:13]} {[%emt 00:00:04]} 34. Re1 {[%clk 00:14:42]} {[%emt 00:01:27]}
Qf5 {[%clk 00:01:30]} {[%emt 00:00:13]} 35. Qb3 {[%clk 00:04:56]} {[%emt
00:10:16]} Rd3 {[%clk 00:01:19]} {[%emt 00:00:42]} 36. Re8+ {[%clk 00:04:08]}
{[%emt 00:01:17]} Kh7 {[%clk 00:00:57]} {[%emt 00:00:53]} 37. Qb8 {[%clk
00:04:10]} {[%emt 00:00:27]} Rxf3 {[%clk 00:00:50]} {[%emt 00:00:37]} 38. Rh8+
{[%clk 00:03:26]} {[%emt 00:01:13]} Kg6 {[%clk 00:01:18]} {[%emt 00:00:03]} 39.
Qe8+ {[%clk 00:02:39]} {[%emt 00:01:17]} Nf7 {[%clk 00:01:43]} {[%emt
00:00:06]} 40. Rh6+ {[%clk 00:03:00]} {[%emt 00:00:07]} Kxh6 {[%clk 00:02:03]}
{[%emt 00:00:11]} 0-1